Workbook

Sheet 시청홈페이지(일반회계)
A1: 2025년 8월 | H1: 지방세외수입 징수보고서(일반회계)
A2: ○ 자치단체명 : 전라남도 여수시
O3: (단위: 원, %)
A4: 항목 | E4: ⓐ징수결정액 (본월분) | F4: ①징수결정액 (누계) | G4: ⓑ수납액 (본월분) | H4: ②수납액 (누계) | I4: 과오납액 (본월분) | J4: ③과오납액 (누계) | K4: 불납결손액 (본월분) | L4: ④불납결손액 (누계) | M4: 미수납액 (①-②-④) | N4: 당월징수율 (ⓑ/ⓐ) | O4: 누적징수율 (②/①)
A5: 합계 | E5: =E6+E32+E48+E57 -> 4,866,485,661 | F5: =F6+F32+F48+F57 -> 73,957,078,374 | G5: 5,056,448,624 | H5: 53,963,274,709 | I5: 12,369,400 | J5: 118,043,321 | K5: 23,320,670 | L5: 186,868,150 | M5: =F5-H5-L5 -> 19,806,935,515 | N5: =ROUND(G5/E5*100,2) -> 103.9 | O5: =ROUND(H5/F5*100,2) -> 72.97
A6: 경상적 세외수입 | E6: =SUM(E7:E31) -> 2,399,484,740 | F6: =SUM(F7:F31) -> 23,361,317,917 | G6: 2,370,954,830 | H6: 21,945,702,194 | I6: 5,096,430 | J6: 32,686,210 | K6: 0 | L6: 0 | M6: =F6-H6-L6 -> 1,415,615,723 | N6: =ROUND(G6/E6*100,2) -> 98.81 | O6: =ROUND(H6/F6*100,2) -> 93.94
B7: 재산임대수입 | C7: 국유재산임대료 | E7: =VLOOKUP($C7,'[1]징수보고서(지난년도제외)'!$A$3:$O$101,4,FALSE) -> 752,950 | F7: =VLOOKUP($C7,'[1]징수보고서(지난년도제외)'!$A$3:$O$101,5,FALSE) -> 242,522,120 | G7: =VLOOKUP($C7,'[1]징수보고서(지난년도제외)'!$A$3:$O$101,6,FALSE) -> 1,447,600 | H7: =VLOOKUP($C7,'[1]징수보고서(지난년도제외)'!$A$3:$O$101,7,FALSE) -> 224,776,950 | I7: =VLOOKUP($C7,'[1]징수보고서(지난년도제외)'!$A$3:$O$101,8,FALSE) -> 0 | J7: =VLOOKUP($C7,'[1]징수보고서(지난년도제외)'!$A$3:$O$101,9,FALSE) -> 0 | K7: =VLOOKUP($C7,'[1]징수보고서(지난년도제외)'!$A$3:$O$101,10,FALSE) -> 0 | L7: =VLOOKUP($C7,'[1]징수보고서(지난년도제외)'!$A$3:$O$101,11,FALSE) -> 0 | M7: =F7-H7-L7 -> 17,745,170 | N7: =ROUND(G7/E7*100,2) -> 192.26 | O7: 92.68
C8: 공유재산임대료 | E8: =VLOOKUP($C8,'[1]징수보고서(지난년도제외)'!$A$3:$O$101,4,FALSE) -> 5,146,480 | F8: =VLOOKUP($C8,'[1]징수보고서(지난년도제외)'!$A$3:$O$101,5,FALSE) -> 672,578,630 | G8: =VLOOKUP($C8,'[1]징수보고서(지난년도제외)'!$A$3:$O$101,6,FALSE) -> 21,244,610 | H8: =VLOOKUP($C8,'[1]징수보고서(지난년도제외)'!$A$3:$O$101,7,FALSE) -> 592,341,240 | I8: =VLOOKUP($C8,'[1]징수보고서(지난년도제외)'!$A$3:$O$101,8,FALSE) -> 37,480 | J8: =VLOOKUP($C8,'[1]징수보고서(지난년도제외)'!$A$3:$O$101,9,FALSE) -> 76,890 | K8: =VLOOKUP($C8,'[1]징수보고서(지난년도제외)'!$A$3:$O$101,10,FALSE) -> 0 | L8: =VLOOKUP($C8,'[1]징수보고서(지난년도제외)'!$A$3:$O$101,11,FALSE) -> 0 | M8: 80,237,390 | N8: 412.8 | O8: 88.07
B9: 사용료수입 | C9: 도로사용료 | E9: =VLOOKUP($C9,'[1]징수보고서(지난년도제외)'!$A$3:$O$101,4,FALSE) -> 24,774,610 | F9: =VLOOKUP($C9,'[1]징수보고서(지난년도제외)'!$A$3:$O$101,5,FALSE) -> 2,348,304,730 | G9: =VLOOKUP($C9,'[1]징수보고서(지난년도제외)'!$A$3:$O$101,6,FALSE) -> 223,743,620 | H9: =VLOOKUP($C9,'[1]징수보고서(지난년도제외)'!$A$3:$O$101,7,FALSE) -> 1,385,706,580 | I9: =VLOOKUP($C9,'[1]징수보고서(지난년도제외)'!$A$3:$O$101,8,FALSE) -> 0 | J9: =VLOOKUP($C9,'[1]징수보고서(지난년도제외)'!$A$3:$O$101,9,FALSE) -> 822,180 | K9: =VLOOKUP($C9,'[1]징수보고서(지난년도제외)'!$A$3:$O$101,10,FALSE) -> 0 | L9: =VLOOKUP($C9,'[1]징수보고서(지난년도제외)'!$A$3:$O$101,11,FALSE) -> 0 | M9: 962,598,150 | N9: 903.12 | O9: 59.01
C10: 하천사용료 | E10: =VLOOKUP($C10,'[1]징수보고서(지난년도제외)'!$A$3:$O$101,4,FALSE) -> 123,540 | F10: =VLOOKUP($C10,'[1]징수보고서(지난년도제외)'!$A$3:$O$101,5,FALSE) -> 120,720,880 | G10: =VLOOKUP($C10,'[1]징수보고서(지난년도제외)'!$A$3:$O$101,6,FALSE) -> 1,207,710 | H10: =VLOOKUP($C10,'[1]징수보고서(지난년도제외)'!$A$3:$O$101,7,FALSE) -> 117,605,390 | I10: =VLOOKUP($C10,'[1]징수보고서(지난년도제외)'!$A$3:$O$101,8,FALSE) -> 0 | J10: =VLOOKUP($C10,'[1]징수보고서(지난년도제외)'!$A$3:$O$101,9,FALSE) -> 0 | K10: =VLOOKUP($C10,'[1]징수보고서(지난년도제외)'!$A$3:$O$101,10,FALSE) -> 0 | L10: =VLOOKUP($C10,'[1]징수보고서(지난년도제외)'!$A$3:$O$101,11,FALSE) -> 0 | M10: 3,115,490 | N10: 977.59 | O10: 97.42
C11: 하수도사용료 | E11: =VLOOKUP($C11,'[1]징수보고서(지난년도제외)'!$A$3:$O$101,4,FALSE) -> 0 | F11: =VLOOKUP($C11,'[1]징수보고서(지난년도제외)'!$A$3:$O$101,5,FALSE) -> 0 | G11: =VLOOKUP($C11,'[1]징수보고서(지난년도제외)'!$A$3:$O$101,6,FALSE) -> 0 | H11: =VLOOKUP($C11,'[1]징수보고서(지난년도제외)'!$A$3:$O$101,7,FALSE) -> 0 | I11: =VLOOKUP($C11,'[1]징수보고서(지난년도제외)'!$A$3:$O$101,8,FALSE) -> 0 | J11: =VLOOKUP($C11,'[1]징수보고서(지난년도제외)'!$A$3:$O$101,9,FALSE) -> 0 | K11: =VLOOKUP($C11,'[1]징수보고서(지난년도제외)'!$A$3:$O$101,10,FALSE) -> 0 | L11: =VLOOKUP($C11,'[1]징수보고서(지난년도제외)'!$A$3:$O$101,11,FALSE) -> 0 | M11: 0
C12: 상수도사용료 | E12: =VLOOKUP($C12,'[1]징수보고서(지난년도제외)'!$A$3:$O$101,4,FALSE) -> 152,150 | F12: =VLOOKUP($C12,'[1]징수보고서(지난년도제외)'!$A$3:$O$101,5,FALSE) -> 991,430 | G12: =VLOOKUP($C12,'[1]징수보고서(지난년도제외)'!$A$3:$O$101,6,FALSE) -> 283,270 | H12: =VLOOKUP($C12,'[1]징수보고서(지난년도제외)'!$A$3:$O$101,7,FALSE) -> 979,840 | I12: =VLOOKUP($C12,'[1]징수보고서(지난년도제외)'!$A$3:$O$101,8,FALSE) -> 0 | J12: =VLOOKUP($C12,'[1]징수보고서(지난년도제외)'!$A$3:$O$101,9,FALSE) -> 0 | K12: =VLOOKUP($C12,'[1]징수보고서(지난년도제외)'!$A$3:$O$101,10,FALSE) -> 0 | L12: =VLOOKUP($C12,'[1]징수보고서(지난년도제외)'!$A$3:$O$101,11,FALSE) -> 0 | M12: 11,590 | N12: 186.18 | O12: 98.83
C13: 공유수면사용료 | E13: =VLOOKUP($C13,'[1]징수보고서(지난년도제외)'!$A$3:$O$101,4,FALSE) -> 325,618,200 | F13: =VLOOKUP($C13,'[1]징수보고서(지난년도제외)'!$A$3:$O$101,5,FALSE) -> 497,117,840 | G13: =VLOOKUP($C13,'[1]징수보고서(지난년도제외)'!$A$3:$O$101,6,FALSE) -> 73,744,950 | H13: =VLOOKUP($C13,'[1]징수보고서(지난년도제외)'!$A$3:$O$101,7,FALSE) -> 238,242,780 | I13: =VLOOKUP($C13,'[1]징수보고서(지난년도제외)'!$A$3:$O$101,8,FALSE) -> 0 | J13: =VLOOKUP($C13,'[1]징수보고서(지난년도제외)'!$A$3:$O$101,9,FALSE) -> 0 | K13: =VLOOKUP($C13,'[1]징수보고서(지난년도제외)'!$A$3:$O$101,10,FALSE) -> 0 | L13: =VLOOKUP($C13,'[1]징수보고서(지난년도제외)'!$A$3:$O$101,11,FALSE) -> 0 | M13: 258,875,060 | N13: 22.65 | O13: 47.92
C14: 시장사용료 | E14: =VLOOKUP($C14,'[1]징수보고서(지난년도제외)'!$A$3:$O$101,4,FALSE) -> 0 | F14: =VLOOKUP($C14,'[1]징수보고서(지난년도제외)'!$A$3:$O$101,5,FALSE) -> 33,469,110 | G14: =VLOOKUP($C14,'[1]징수보고서(지난년도제외)'!$A$3:$O$101,6,FALSE) -> 0 | H14: =VLOOKUP($C14,'[1]징수보고서(지난년도제외)'!$A$3:$O$101,7,FALSE) -> 33,469,110 | I14: =VLOOKUP($C14,'[1]징수보고서(지난년도제외)'!$A$3:$O$101,8,FALSE) -> 0 | J14: =VLOOKUP($C14,'[1]징수보고서(지난년도제외)'!$A$3:$O$101,9,FALSE) -> 0 | K14: =VLOOKUP($C14,'[1]징수보고서(지난년도제외)'!$A$3:$O$101,10,FALSE) -> 0 | L14: =VLOOKUP($C14,'[1]징수보고서(지난년도제외)'!$A$3:$O$101,11,FALSE) -> 0 | M14: 0 | O14: 100
C15: 입장료수입 | E15: =VLOOKUP($C15,'[1]징수보고서(지난년도제외)'!$A$3:$O$101,4,FALSE) -> 0 | F15: =VLOOKUP($C15,'[1]징수보고서(지난년도제외)'!$A$3:$O$101,5,FALSE) -> 3,111,000 | G15: =VLOOKUP($C15,'[1]징수보고서(지난년도제외)'!$A$3:$O$101,6,FALSE) -> 0 | H15: =VLOOKUP($C15,'[1]징수보고서(지난년도제외)'!$A$3:$O$101,7,FALSE) -> 3,111,000 | I15: =VLOOKUP($C15,'[1]징수보고서(지난년도제외)'!$A$3:$O$101,8,FALSE) -> 0 | J15: =VLOOKUP($C15,'[1]징수보고서(지난년도제외)'!$A$3:$O$101,9,FALSE) -> 0 | K15: =VLOOKUP($C15,'[1]징수보고서(지난년도제외)'!$A$3:$O$101,10,FALSE) -> 0 | L15: =VLOOKUP($C15,'[1]징수보고서(지난년도제외)'!$A$3:$O$101,11,FALSE) -> 0 | M15: 0 | O15: 100
C16: 주차요금수입 | E16: =VLOOKUP($C16,'[1]징수보고서(지난년도제외)'!$A$3:$O$101,4,FALSE) -> 18,181,760 | F16: =VLOOKUP($C16,'[1]징수보고서(지난년도제외)'!$A$3:$O$101,5,FALSE) -> 170,112,870 | G16: =VLOOKUP($C16,'[1]징수보고서(지난년도제외)'!$A$3:$O$101,6,FALSE) -> 18,181,760 | H16: =VLOOKUP($C16,'[1]징수보고서(지난년도제외)'!$A$3:$O$101,7,FALSE) -> 170,092,870 | I16: =VLOOKUP($C16,'[1]징수보고서(지난년도제외)'!$A$3:$O$101,8,FALSE) -> 0 | J16: =VLOOKUP($C16,'[1]징수보고서(지난년도제외)'!$A$3:$O$101,9,FALSE) -> 0 | K16: =VLOOKUP($C16,'[1]징수보고서(지난년도제외)'!$A$3:$O$101,10,FALSE) -> 0 | L16: =VLOOKUP($C16,'[1]징수보고서(지난년도제외)'!$A$3:$O$101,11,FALSE) -> 0 | M16: 20,000 | N16: 100 | O16: 99.99
C17: 기타사용료 | E17: =VLOOKUP($C17,'[1]징수보고서(지난년도제외)'!$A$3:$O$101,4,FALSE) -> 438,450,530 | F17: =VLOOKUP($C17,'[1]징수보고서(지난년도제외)'!$A$3:$O$101,5,FALSE) -> 3,291,684,835 | G17: =VLOOKUP($C17,'[1]징수보고서(지난년도제외)'!$A$3:$O$101,6,FALSE) -> 447,508,930 | H17: =VLOOKUP($C17,'[1]징수보고서(지난년도제외)'!$A$3:$O$101,7,FALSE) -> 3,226,834,110 | I17: =VLOOKUP($C17,'[1]징수보고서(지난년도제외)'!$A$3:$O$101,8,FALSE) -> 5,053,950 | J17: =VLOOKUP($C17,'[1]징수보고서(지난년도제외)'!$A$3:$O$101,9,FALSE) -> 31,306,540 | K17: =VLOOKUP($C17,'[1]징수보고서(지난년도제외)'!$A$3:$O$101,10,FALSE) -> 0 | L17: =VLOOKUP($C17,'[1]징수보고서(지난년도제외)'!$A$3:$O$101,11,FALSE) -> 0 | M17: 64,850,725 | N17: 102.07 | O17: 98.03
B18: 수수료수입 | C18: 증지수입 | E18: =VLOOKUP($C18,'[1]징수보고서(지난년도제외)'!$A$3:$O$101,4,FALSE) -> 54,437,890 | F18: =VLOOKUP($C18,'[1]징수보고서(지난년도제외)'!$A$3:$O$101,5,FALSE) -> 490,631,330 | G18: =VLOOKUP($C18,'[1]징수보고서(지난년도제외)'!$A$3:$O$101,6,FALSE) -> 54,149,430 | H18: =VLOOKUP($C18,'[1]징수보고서(지난년도제외)'!$A$3:$O$101,7,FALSE) -> 489,081,630 | I18: =VLOOKUP($C18,'[1]징수보고서(지난년도제외)'!$A$3:$O$101,8,FALSE) -> 5,000 | J18: =VLOOKUP($C18,'[1]징수보고서(지난년도제외)'!$A$3:$O$101,9,FALSE) -> 53,900 | K18: =VLOOKUP($C18,'[1]징수보고서(지난년도제외)'!$A$3:$O$101,10,FALSE) -> 0 | L18: =VLOOKUP($C18,'[1]징수보고서(지난년도제외)'!$A$3:$O$101,11,FALSE) -> 0 | M18: 1,549,700 | N18: 99.47 | O18: 99.68
C19: 폐기물처리수수료 | E19: =VLOOKUP($C19,'[1]징수보고서(지난년도제외)'!$A$3:$O$101,4,FALSE) -> 635,004,840 | F19: =VLOOKUP($C19,'[1]징수보고서(지난년도제외)'!$A$3:$O$101,5,FALSE) -> 4,775,295,430 | G19: =VLOOKUP($C19,'[1]징수보고서(지난년도제외)'!$A$3:$O$101,6,FALSE) -> 630,295,790 | H19: =VLOOKUP($C19,'[1]징수보고서(지난년도제외)'!$A$3:$O$101,7,FALSE) -> 4,763,202,700 | I19: =VLOOKUP($C19,'[1]징수보고서(지난년도제외)'!$A$3:$O$101,8,FALSE) -> 0 | J19: =VLOOKUP($C19,'[1]징수보고서(지난년도제외)'!$A$3:$O$101,9,FALSE) -> 228,320 | K19: =VLOOKUP($C19,'[1]징수보고서(지난년도제외)'!$A$3:$O$101,10,FALSE) -> 0 | L19: =VLOOKUP($C19,'[1]징수보고서(지난년도제외)'!$A$3:$O$101,11,FALSE) -> 0 | M19: 12,092,730 | N19: 99.26 | O19: 99.75
C20: 재활용품수거판매수입 | E20: =VLOOKUP($C20,'[1]징수보고서(지난년도제외)'!$A$3:$O$101,4,FALSE) -> 18,896,350 | F20: =VLOOKUP($C20,'[1]징수보고서(지난년도제외)'!$A$3:$O$101,5,FALSE) -> 153,434,250 | G20: =VLOOKUP($C20,'[1]징수보고서(지난년도제외)'!$A$3:$O$101,6,FALSE) -> 19,456,700 | H20: =VLOOKUP($C20,'[1]징수보고서(지난년도제외)'!$A$3:$O$101,7,FALSE) -> 142,314,800 | I20: =VLOOKUP($C20,'[1]징수보고서(지난년도제외)'!$A$3:$O$101,8,FALSE) -> 0 | J20: =VLOOKUP($C20,'[1]징수보고서(지난년도제외)'!$A$3:$O$101,9,FALSE) -> 0 | K20: =VLOOKUP($C20,'[1]징수보고서(지난년도제외)'!$A$3:$O$101,10,FALSE) -> 0 | L20: =VLOOKUP($C20,'[1]징수보고서(지난년도제외)'!$A$3:$O$101,11,FALSE) -> 0 | M20: 11,119,450 | N20: 102.97 | O20: 92.75
C21: 보건의료수수료 | E21: =VLOOKUP($C21,'[1]징수보고서(지난년도제외)'!$A$3:$O$101,4,FALSE) -> 49,982,750 | F21: =VLOOKUP($C21,'[1]징수보고서(지난년도제외)'!$A$3:$O$101,5,FALSE) -> 398,269,650 | G21: =VLOOKUP($C21,'[1]징수보고서(지난년도제외)'!$A$3:$O$101,6,FALSE) -> 49,957,250 | H21: =VLOOKUP($C21,'[1]징수보고서(지난년도제외)'!$A$3:$O$101,7,FALSE) -> 398,027,550 | I21: =VLOOKUP($C21,'[1]징수보고서(지난년도제외)'!$A$3:$O$101,8,FALSE) -> 0 | J21: =VLOOKUP($C21,'[1]징수보고서(지난년도제외)'!$A$3:$O$101,9,FALSE) -> 11,460 | K21: =VLOOKUP($C21,'[1]징수보고서(지난년도제외)'!$A$3:$O$101,10,FALSE) -> 0 | L21: =VLOOKUP($C21,'[1]징수보고서(지난년도제외)'!$A$3:$O$101,11,FALSE) -> 0 | M21: 242,100 | N21: 99.95 | O21: 99.94
C22: 기타수수료 | E22: =VLOOKUP($C22,'[1]징수보고서(지난년도제외)'!$A$3:$O$101,4,FALSE) -> 48,299,840 | F22: =VLOOKUP($C22,'[1]징수보고서(지난년도제외)'!$A$3:$O$101,5,FALSE) -> 356,103,960 | G22: =VLOOKUP($C22,'[1]징수보고서(지난년도제외)'!$A$3:$O$101,6,FALSE) -> 49,088,740 | H22: =VLOOKUP($C22,'[1]징수보고서(지난년도제외)'!$A$3:$O$101,7,FALSE) -> 354,864,650 | I22: =VLOOKUP($C22,'[1]징수보고서(지난년도제외)'!$A$3:$O$101,8,FALSE) -> 0 | J22: =VLOOKUP($C22,'[1]징수보고서(지난년도제외)'!$A$3:$O$101,9,FALSE) -> 8,300 | K22: =VLOOKUP($C22,'[1]징수보고서(지난년도제외)'!$A$3:$O$101,10,FALSE) -> 0 | L22: =VLOOKUP($C22,'[1]징수보고서(지난년도제외)'!$A$3:$O$101,11,FALSE) -> 0 | M22: 1,239,310 | N22: 101.63 | O22: 99.65
B23: 사업수입 | C23: 사업장생산수입 | E23: =VLOOKUP($C23,'[1]징수보고서(지난년도제외)'!$A$3:$O$101,4,FALSE) -> 117,910,000 | F23: =VLOOKUP($C23,'[1]징수보고서(지난년도제외)'!$A$3:$O$101,5,FALSE) -> 723,024,910 | G23: =VLOOKUP($C23,'[1]징수보고서(지난년도제외)'!$A$3:$O$101,6,FALSE) -> 117,959,000 | H23: =VLOOKUP($C23,'[1]징수보고서(지난년도제외)'!$A$3:$O$101,7,FALSE) -> 722,999,410 | I23: =VLOOKUP($C23,'[1]징수보고서(지난년도제외)'!$A$3:$O$101,8,FALSE) -> 0 | J23: =VLOOKUP($C23,'[1]징수보고서(지난년도제외)'!$A$3:$O$101,9,FALSE) -> 0 | K23: =VLOOKUP($C23,'[1]징수보고서(지난년도제외)'!$A$3:$O$101,10,FALSE) -> 0 | L23: =VLOOKUP($C23,'[1]징수보고서(지난년도제외)'!$A$3:$O$101,11,FALSE) -> 0 | M23: 25,500 | N23: 100.04 | O23: 100
C24: 청산금수입 | E24: =VLOOKUP($C24,'[1]징수보고서(지난년도제외)'!$A$3:$O$101,4,FALSE) -> 0 | F24: =VLOOKUP($C24,'[1]징수보고서(지난년도제외)'!$A$3:$O$101,5,FALSE) -> 0 | G24: =VLOOKUP($C24,'[1]징수보고서(지난년도제외)'!$A$3:$O$101,6,FALSE) -> 0 | H24: =VLOOKUP($C24,'[1]징수보고서(지난년도제외)'!$A$3:$O$101,7,FALSE) -> 0 | I24: =VLOOKUP($C24,'[1]징수보고서(지난년도제외)'!$A$3:$O$101,8,FALSE) -> 0 | J24: =VLOOKUP($C24,'[1]징수보고서(지난년도제외)'!$A$3:$O$101,9,FALSE) -> 0 | K24: =VLOOKUP($C24,'[1]징수보고서(지난년도제외)'!$A$3:$O$101,10,FALSE) -> 0 | L24: =VLOOKUP($C24,'[1]징수보고서(지난년도제외)'!$A$3:$O$101,11,FALSE) -> 0 | M24: 0
C25: 매각사업수입 | E25: =VLOOKUP($C25,'[1]징수보고서(지난년도제외)'!$A$3:$O$101,4,FALSE) -> 0 | F25: =VLOOKUP($C25,'[1]징수보고서(지난년도제외)'!$A$3:$O$101,5,FALSE) -> 0 | G25: =VLOOKUP($C25,'[1]징수보고서(지난년도제외)'!$A$3:$O$101,6,FALSE) -> 0 | H25: =VLOOKUP($C25,'[1]징수보고서(지난년도제외)'!$A$3:$O$101,7,FALSE) -> 0 | I25: =VLOOKUP($C25,'[1]징수보고서(지난년도제외)'!$A$3:$O$101,8,FALSE) -> 0 | J25: =VLOOKUP($C25,'[1]징수보고서(지난년도제외)'!$A$3:$O$101,9,FALSE) -> 0 | K25: =VLOOKUP($C25,'[1]징수보고서(지난년도제외)'!$A$3:$O$101,10,FALSE) -> 0 | L25: =VLOOKUP($C25,'[1]징수보고서(지난년도제외)'!$A$3:$O$101,11,FALSE) -> 0 | M25: 0
C26: 배당금수입 | E26: =VLOOKUP($C26,'[1]징수보고서(지난년도제외)'!$A$3:$O$101,4,FALSE) -> 0 | F26: =VLOOKUP($C26,'[1]징수보고서(지난년도제외)'!$A$3:$O$101,5,FALSE) -> 0 | G26: =VLOOKUP($C26,'[1]징수보고서(지난년도제외)'!$A$3:$O$101,6,FALSE) -> 0 | H26: =VLOOKUP($C26,'[1]징수보고서(지난년도제외)'!$A$3:$O$101,7,FALSE) -> 0 | I26: =VLOOKUP($C26,'[1]징수보고서(지난년도제외)'!$A$3:$O$101,8,FALSE) -> 0 | J26: =VLOOKUP($C26,'[1]징수보고서(지난년도제외)'!$A$3:$O$101,9,FALSE) -> 0 | K26: =VLOOKUP($C26,'[1]징수보고서(지난년도제외)'!$A$3:$O$101,10,FALSE) -> 0 | L26: =VLOOKUP($C26,'[1]징수보고서(지난년도제외)'!$A$3:$O$101,11,FALSE) -> 0 | M26: 0
C27: 기타사업수입 | E27: =VLOOKUP($C27,'[1]징수보고서(지난년도제외)'!$A$3:$O$101,4,FALSE) -> 792,000 | F27: =VLOOKUP($C27,'[1]징수보고서(지난년도제외)'!$A$3:$O$101,5,FALSE) -> 6,648,480 | G27: =VLOOKUP($C27,'[1]징수보고서(지난년도제외)'!$A$3:$O$101,6,FALSE) -> 885,500 | H27: =VLOOKUP($C27,'[1]징수보고서(지난년도제외)'!$A$3:$O$101,7,FALSE) -> 6,615,480 | I27: =VLOOKUP($C27,'[1]징수보고서(지난년도제외)'!$A$3:$O$101,8,FALSE) -> 0 | J27: =VLOOKUP($C27,'[1]징수보고서(지난년도제외)'!$A$3:$O$101,9,FALSE) -> 0 | K27: =VLOOKUP($C27,'[1]징수보고서(지난년도제외)'!$A$3:$O$101,10,FALSE) -> 0 | L27: =VLOOKUP($C27,'[1]징수보고서(지난년도제외)'!$A$3:$O$101,11,FALSE) -> 0 | M27: 33,000 | N27: 111.81 | O27: 99.5
B28: 징수교부금수입 | C28: 징수교부금수입 | E28: =VLOOKUP($C28,'[1]징수보고서(지난년도제외)'!$A$3:$O$101,4,FALSE) -> 252,103,160 | F28: =VLOOKUP($C28,'[1]징수보고서(지난년도제외)'!$A$3:$O$101,5,FALSE) -> 1,802,163,680 | G28: =VLOOKUP($C28,'[1]징수보고서(지난년도제외)'!$A$3:$O$101,6,FALSE) -> 252,103,160 | H28: =VLOOKUP($C28,'[1]징수보고서(지난년도제외)'!$A$3:$O$101,7,FALSE) -> 1,802,163,680 | I28: =VLOOKUP($C28,'[1]징수보고서(지난년도제외)'!$A$3:$O$101,8,FALSE) -> 0 | J28: =VLOOKUP($C28,'[1]징수보고서(지난년도제외)'!$A$3:$O$101,9,FALSE) -> 0 | K28: =VLOOKUP($C28,'[1]징수보고서(지난년도제외)'!$A$3:$O$101,10,FALSE) -> 0 | L28: =VLOOKUP($C28,'[1]징수보고서(지난년도제외)'!$A$3:$O$101,11,FALSE) -> 0 | M28: 0 | N28: 100 | O28: 100
B29: 이자수입 | C29: 공공예금이자수입 | E29: =VLOOKUP($C29,'[1]징수보고서(지난년도제외)'!$A$3:$O$101,4,FALSE) -> 407,856,140 | F29: =VLOOKUP($C29,'[1]징수보고서(지난년도제외)'!$A$3:$O$101,5,FALSE) -> 6,405,261,220 | G29: =VLOOKUP($C29,'[1]징수보고서(지난년도제외)'!$A$3:$O$101,6,FALSE) -> 407,856,140 | H29: =VLOOKUP($C29,'[1]징수보고서(지난년도제외)'!$A$3:$O$101,7,FALSE) -> 6,405,261,220 | I29: =VLOOKUP($C29,'[1]징수보고서(지난년도제외)'!$A$3:$O$101,8,FALSE) -> 0 | J29: =VLOOKUP($C29,'[1]징수보고서(지난년도제외)'!$A$3:$O$101,9,FALSE) -> 0 | K29: =VLOOKUP($C29,'[1]징수보고서(지난년도제외)'!$A$3:$O$101,10,FALSE) -> 0 | L29: =VLOOKUP($C29,'[1]징수보고서(지난년도제외)'!$A$3:$O$101,11,FALSE) -> 0 | M29: 0 | N29: 100 | O29: 100
C30: 융자금회수이자수입 | E30: =VLOOKUP($C30,'[1]징수보고서(지난년도제외)'!$A$3:$O$101,4,FALSE) -> 0 | F30: =VLOOKUP($C30,'[1]징수보고서(지난년도제외)'!$A$3:$O$101,5,FALSE) -> 0 | G30: =VLOOKUP($C30,'[1]징수보고서(지난년도제외)'!$A$3:$O$101,6,FALSE) -> 0 | H30: =VLOOKUP($C30,'[1]징수보고서(지난년도제외)'!$A$3:$O$101,7,FALSE) -> 0 | I30: =VLOOKUP($C30,'[1]징수보고서(지난년도제외)'!$A$3:$O$101,8,FALSE) -> 0 | J30: =VLOOKUP($C30,'[1]징수보고서(지난년도제외)'!$A$3:$O$101,9,FALSE) -> 0 | K30: =VLOOKUP($C30,'[1]징수보고서(지난년도제외)'!$A$3:$O$101,10,FALSE) -> 0 | L30: =VLOOKUP($C30,'[1]징수보고서(지난년도제외)'!$A$3:$O$101,11,FALSE) -> 0 | M30: 0
C31: 기타이자수입 | E31: =VLOOKUP($C31,'[1]징수보고서(지난년도제외)'!$A$3:$O$101,4,FALSE) -> 1,001,550 | F31: =VLOOKUP($C31,'[1]징수보고서(지난년도제외)'!$A$3:$O$101,5,FALSE) -> 869,871,562 | G31: =VLOOKUP($C31,'[1]징수보고서(지난년도제외)'!$A$3:$O$101,6,FALSE) -> 1,840,670 | H31: =VLOOKUP($C31,'[1]징수보고서(지난년도제외)'!$A$3:$O$101,7,FALSE) -> 868,011,204 | I31: =VLOOKUP($C31,'[1]징수보고서(지난년도제외)'!$A$3:$O$101,8,FALSE) -> 0 | J31: =VLOOKUP($C31,'[1]징수보고서(지난년도제외)'!$A$3:$O$101,9,FALSE) -> 178,620 | K31: =VLOOKUP($C31,'[1]징수보고서(지난년도제외)'!$A$3:$O$101,10,FALSE) -> 0 | L31: =VLOOKUP($C31,'[1]징수보고서(지난년도제외)'!$A$3:$O$101,11,FALSE) -> 0 | M31: =F31-H31-L31 -> 1,860,358 | N31: 183.78 | O31: 99.79
A32: 임시적세외수입 | E32: =SUM(E33:E47) -> 2,186,361,234 | F32: 27,558,451,765 | G32: 2,399,332,194 | H32: 25,964,396,545 | I32: 0 | J32: 4,026,570 | K32: 0 | L32: 0 | M32: 1,594,055,220 | N32: 109.74 | O32: 94.22
B33: 재산매각수입 | C33: 국유재산매각귀속수입금 | E33: =VLOOKUP($C33,'[1]징수보고서(지난년도제외)'!$A$3:$O$101,4,FALSE) -> 0 | F33: =VLOOKUP($C33,'[1]징수보고서(지난년도제외)'!$A$3:$O$101,5,FALSE) -> 0 | G33: =VLOOKUP($C33,'[1]징수보고서(지난년도제외)'!$A$3:$O$101,6,FALSE) -> 0 | H33: =VLOOKUP($C33,'[1]징수보고서(지난년도제외)'!$A$3:$O$101,7,FALSE) -> 0 | I33: =VLOOKUP($C33,'[1]징수보고서(지난년도제외)'!$A$3:$O$101,8,FALSE) -> 0 | J33: =VLOOKUP($C33,'[1]징수보고서(지난년도제외)'!$A$3:$O$101,9,FALSE) -> 0 | K33: =VLOOKUP($C33,'[1]징수보고서(지난년도제외)'!$A$3:$O$101,10,FALSE) -> 0 | L33: =VLOOKUP($C33,'[1]징수보고서(지난년도제외)'!$A$3:$O$101,11,FALSE) -> 0 | M33: =F33-H33-L33 -> 0
C34: 시도유재산매각귀속수입금 | E34: =VLOOKUP($C34,'[1]징수보고서(지난년도제외)'!$A$3:$O$101,4,FALSE) -> 0 | F34: =VLOOKUP($C34,'[1]징수보고서(지난년도제외)'!$A$3:$O$101,5,FALSE) -> 0 | G34: =VLOOKUP($C34,'[1]징수보고서(지난년도제외)'!$A$3:$O$101,6,FALSE) -> 0 | H34: =VLOOKUP($C34,'[1]징수보고서(지난년도제외)'!$A$3:$O$101,7,FALSE) -> 0 | I34: =VLOOKUP($C34,'[1]징수보고서(지난년도제외)'!$A$3:$O$101,8,FALSE) -> 0 | J34: =VLOOKUP($C34,'[1]징수보고서(지난년도제외)'!$A$3:$O$101,9,FALSE) -> 0 | K34: =VLOOKUP($C34,'[1]징수보고서(지난년도제외)'!$A$3:$O$101,10,FALSE) -> 0 | L34: =VLOOKUP($C34,'[1]징수보고서(지난년도제외)'!$A$3:$O$101,11,FALSE) -> 0 | M34: =F34-H34-L34 -> 0
C35: 공유재산매각수입금 | E35: =VLOOKUP($C35,'[1]징수보고서(지난년도제외)'!$A$3:$O$101,4,FALSE) -> 0 | F35: =VLOOKUP($C35,'[1]징수보고서(지난년도제외)'!$A$3:$O$101,5,FALSE) -> 8,874,404,080 | G35: =VLOOKUP($C35,'[1]징수보고서(지난년도제외)'!$A$3:$O$101,6,FALSE) -> 40,940,000 | H35: =VLOOKUP($C35,'[1]징수보고서(지난년도제외)'!$A$3:$O$101,7,FALSE) -> 8,874,404,080 | I35: =VLOOKUP($C35,'[1]징수보고서(지난년도제외)'!$A$3:$O$101,8,FALSE) -> 0 | J35: =VLOOKUP($C35,'[1]징수보고서(지난년도제외)'!$A$3:$O$101,9,FALSE) -> 0 | K35: =VLOOKUP($C35,'[1]징수보고서(지난년도제외)'!$A$3:$O$101,10,FALSE) -> 0 | L35: =VLOOKUP($C35,'[1]징수보고서(지난년도제외)'!$A$3:$O$101,11,FALSE) -> 0 | M35: 0 | O35: 100
C36: 불용품매각대금 | E36: =VLOOKUP($C36,'[1]징수보고서(지난년도제외)'!$A$3:$O$101,4,FALSE) -> 0 | F36: =VLOOKUP($C36,'[1]징수보고서(지난년도제외)'!$A$3:$O$101,5,FALSE) -> 34,258,990 | G36: =VLOOKUP($C36,'[1]징수보고서(지난년도제외)'!$A$3:$O$101,6,FALSE) -> 0 | H36: =VLOOKUP($C36,'[1]징수보고서(지난년도제외)'!$A$3:$O$101,7,FALSE) -> 34,258,990 | I36: =VLOOKUP($C36,'[1]징수보고서(지난년도제외)'!$A$3:$O$101,8,FALSE) -> 0 | J36: =VLOOKUP($C36,'[1]징수보고서(지난년도제외)'!$A$3:$O$101,9,FALSE) -> 0 | K36: =VLOOKUP($C36,'[1]징수보고서(지난년도제외)'!$A$3:$O$101,10,FALSE) -> 0 | L36: =VLOOKUP($C36,'[1]징수보고서(지난년도제외)'!$A$3:$O$101,11,FALSE) -> 0 | M36: 0 | O36: 100
B37: 자치단체간부담금 | C37: 자치단체간부담금 | E37: =VLOOKUP($C37,'[1]징수보고서(지난년도제외)'!$A$3:$O$101,4,FALSE) -> 0 | F37: =VLOOKUP($C37,'[1]징수보고서(지난년도제외)'!$A$3:$O$101,5,FALSE) -> 950,000,000 | G37: =VLOOKUP($C37,'[1]징수보고서(지난년도제외)'!$A$3:$O$101,6,FALSE) -> 0 | H37: =VLOOKUP($C37,'[1]징수보고서(지난년도제외)'!$A$3:$O$101,7,FALSE) -> 950,000,000 | I37: =VLOOKUP($C37,'[1]징수보고서(지난년도제외)'!$A$3:$O$101,8,FALSE) -> 0 | J37: =VLOOKUP($C37,'[1]징수보고서(지난년도제외)'!$A$3:$O$101,9,FALSE) -> 0 | K37: =VLOOKUP($C37,'[1]징수보고서(지난년도제외)'!$A$3:$O$101,10,FALSE) -> 0 | L37: =VLOOKUP($C37,'[1]징수보고서(지난년도제외)'!$A$3:$O$101,11,FALSE) -> 0 | M37: 0 | O37: 100
B38: 보조금 반환수입 | C38: 시도비보조금등반환수입 | E38: =VLOOKUP($C38,'[1]징수보고서(지난년도제외)'!$A$3:$O$101,4,FALSE) -> 0 | F38: =VLOOKUP($C38,'[1]징수보고서(지난년도제외)'!$A$3:$O$101,5,FALSE) -> 0 | G38: =VLOOKUP($C38,'[1]징수보고서(지난년도제외)'!$A$3:$O$101,6,FALSE) -> 0 | H38: =VLOOKUP($C38,'[1]징수보고서(지난년도제외)'!$A$3:$O$101,7,FALSE) -> 0 | I38: =VLOOKUP($C38,'[1]징수보고서(지난년도제외)'!$A$3:$O$101,8,FALSE) -> 0 | J38: =VLOOKUP($C38,'[1]징수보고서(지난년도제외)'!$A$3:$O$101,9,FALSE) -> 0 | K38: =VLOOKUP($C38,'[1]징수보고서(지난년도제외)'!$A$3:$O$101,10,FALSE) -> 0 | L38: =VLOOKUP($C38,'[1]징수보고서(지난년도제외)'!$A$3:$O$101,11,FALSE) -> 0 | M38: 0
C39: 자체보조금등반환수입 | E39: =VLOOKUP($C39,'[1]징수보고서(지난년도제외)'!$A$3:$O$101,4,FALSE) -> 28,496,620 | F39: =VLOOKUP($C39,'[1]징수보고서(지난년도제외)'!$A$3:$O$101,5,FALSE) -> 3,312,782,026 | G39: =VLOOKUP($C39,'[1]징수보고서(지난년도제외)'!$A$3:$O$101,6,FALSE) -> 114,120,130 | H39: =VLOOKUP($C39,'[1]징수보고서(지난년도제외)'!$A$3:$O$101,7,FALSE) -> 3,257,277,616 | I39: =VLOOKUP($C39,'[1]징수보고서(지난년도제외)'!$A$3:$O$101,8,FALSE) -> 0 | J39: =VLOOKUP($C39,'[1]징수보고서(지난년도제외)'!$A$3:$O$101,9,FALSE) -> 3,595,170 | K39: =VLOOKUP($C39,'[1]징수보고서(지난년도제외)'!$A$3:$O$101,10,FALSE) -> 0 | L39: =VLOOKUP($C39,'[1]징수보고서(지난년도제외)'!$A$3:$O$101,11,FALSE) -> 0 | M39: 55,504,410 | N39: 400.47 | O39: 98.32
C40: 위탁비반환수입 | E40: =VLOOKUP($C40,'[1]징수보고서(지난년도제외)'!$A$3:$O$101,4,FALSE) -> 4,238,660 | F40: =VLOOKUP($C40,'[1]징수보고서(지난년도제외)'!$A$3:$O$101,5,FALSE) -> 164,779,760 | G40: =VLOOKUP($C40,'[1]징수보고서(지난년도제외)'!$A$3:$O$101,6,FALSE) -> 15,779,690 | H40: =VLOOKUP($C40,'[1]징수보고서(지난년도제외)'!$A$3:$O$101,7,FALSE) -> 164,779,760 | I40: =VLOOKUP($C40,'[1]징수보고서(지난년도제외)'!$A$3:$O$101,8,FALSE) -> 0 | J40: =VLOOKUP($C40,'[1]징수보고서(지난년도제외)'!$A$3:$O$101,9,FALSE) -> 0 | K40: =VLOOKUP($C40,'[1]징수보고서(지난년도제외)'!$A$3:$O$101,10,FALSE) -> 0 | L40: =VLOOKUP($C40,'[1]징수보고서(지난년도제외)'!$A$3:$O$101,11,FALSE) -> 0 | M40: 0 | N40: 372.28 | O40: 100
B41: 기타수입 | C41: 체납처분수입 | E41: =VLOOKUP($C41,'[1]징수보고서(지난년도제외)'!$A$3:$O$101,4,FALSE) -> 0 | F41: =VLOOKUP($C41,'[1]징수보고서(지난년도제외)'!$A$3:$O$101,5,FALSE) -> 0 | G41: =VLOOKUP($C41,'[1]징수보고서(지난년도제외)'!$A$3:$O$101,6,FALSE) -> 0 | H41: =VLOOKUP($C41,'[1]징수보고서(지난년도제외)'!$A$3:$O$101,7,FALSE) -> 0 | I41: =VLOOKUP($C41,'[1]징수보고서(지난년도제외)'!$A$3:$O$101,8,FALSE) -> 0 | J41: =VLOOKUP($C41,'[1]징수보고서(지난년도제외)'!$A$3:$O$101,9,FALSE) -> 0 | K41: =VLOOKUP($C41,'[1]징수보고서(지난년도제외)'!$A$3:$O$101,10,FALSE) -> 0 | L41: =VLOOKUP($C41,'[1]징수보고서(지난년도제외)'!$A$3:$O$101,11,FALSE) -> 0 | M41: 0
C42: 보상금수납금 | E42: =VLOOKUP($C42,'[1]징수보고서(지난년도제외)'!$A$3:$O$101,4,FALSE) -> 0 | F42: =VLOOKUP($C42,'[1]징수보고서(지난년도제외)'!$A$3:$O$101,5,FALSE) -> 0 | G42: =VLOOKUP($C42,'[1]징수보고서(지난년도제외)'!$A$3:$O$101,6,FALSE) -> 0 | H42: =VLOOKUP($C42,'[1]징수보고서(지난년도제외)'!$A$3:$O$101,7,FALSE) -> 0 | I42: =VLOOKUP($C42,'[1]징수보고서(지난년도제외)'!$A$3:$O$101,8,FALSE) -> 0 | J42: =VLOOKUP($C42,'[1]징수보고서(지난년도제외)'!$A$3:$O$101,9,FALSE) -> 0 | K42: =VLOOKUP($C42,'[1]징수보고서(지난년도제외)'!$A$3:$O$101,10,FALSE) -> 0 | L42: =VLOOKUP($C42,'[1]징수보고서(지난년도제외)'!$A$3:$O$101,11,FALSE) -> 0 | M42: 0
C43: 기부금수입 | E43: =VLOOKUP($C43,'[1]징수보고서(지난년도제외)'!$A$3:$O$101,4,FALSE) -> 0 | F43: =VLOOKUP($C43,'[1]징수보고서(지난년도제외)'!$A$3:$O$101,5,FALSE) -> 96,100,080 | G43: =VLOOKUP($C43,'[1]징수보고서(지난년도제외)'!$A$3:$O$101,6,FALSE) -> 0 | H43: =VLOOKUP($C43,'[1]징수보고서(지난년도제외)'!$A$3:$O$101,7,FALSE) -> 96,100,080 | I43: =VLOOKUP($C43,'[1]징수보고서(지난년도제외)'!$A$3:$O$101,8,FALSE) -> 0 | J43: =VLOOKUP($C43,'[1]징수보고서(지난년도제외)'!$A$3:$O$101,9,FALSE) -> 0 | K43: =VLOOKUP($C43,'[1]징수보고서(지난년도제외)'!$A$3:$O$101,10,FALSE) -> 0 | L43: =VLOOKUP($C43,'[1]징수보고서(지난년도제외)'!$A$3:$O$101,11,FALSE) -> 0 | M43: 0 | O43: 100
C44: 지적재조사조정금 | E44: =VLOOKUP($C44,'[1]징수보고서(지난년도제외)'!$A$3:$O$101,4,FALSE) -> 102,765,820 | F44: =VLOOKUP($C44,'[1]징수보고서(지난년도제외)'!$A$3:$O$101,5,FALSE) -> 4,170,081,470 | G44: =VLOOKUP($C44,'[1]징수보고서(지난년도제외)'!$A$3:$O$101,6,FALSE) -> 108,772,070 | H44: =VLOOKUP($C44,'[1]징수보고서(지난년도제외)'!$A$3:$O$101,7,FALSE) -> 2,756,577,620 | I44: =VLOOKUP($C44,'[1]징수보고서(지난년도제외)'!$A$3:$O$101,8,FALSE) -> 0 | J44: =VLOOKUP($C44,'[1]징수보고서(지난년도제외)'!$A$3:$O$101,9,FALSE) -> 0 | K44: =VLOOKUP($C44,'[1]징수보고서(지난년도제외)'!$A$3:$O$101,10,FALSE) -> 0 | L44: =VLOOKUP($C44,'[1]징수보고서(지난년도제외)'!$A$3:$O$101,11,FALSE) -> 0 | M44: 1,413,503,850 | N44: 105.84 | O44: 66.1
C45: 지방교부세감소분보전수입 | E45: =VLOOKUP($C45,'[1]징수보고서(지난년도제외)'!$A$3:$O$101,4,FALSE) -> 1,997,252,450 | F45: =VLOOKUP($C45,'[1]징수보고서(지난년도제외)'!$A$3:$O$101,5,FALSE) -> 6,201,211,080 | G45: =VLOOKUP($C45,'[1]징수보고서(지난년도제외)'!$A$3:$O$101,6,FALSE) -> 1,997,252,450 | H45: =VLOOKUP($C45,'[1]징수보고서(지난년도제외)'!$A$3:$O$101,7,FALSE) -> 6,201,211,080 | I45: =VLOOKUP($C45,'[1]징수보고서(지난년도제외)'!$A$3:$O$101,8,FALSE) -> 0 | J45: =VLOOKUP($C45,'[1]징수보고서(지난년도제외)'!$A$3:$O$101,9,FALSE) -> 0 | K45: =VLOOKUP($C45,'[1]징수보고서(지난년도제외)'!$A$3:$O$101,10,FALSE) -> 0 | L45: =VLOOKUP($C45,'[1]징수보고서(지난년도제외)'!$A$3:$O$101,11,FALSE) -> 0 | M45: 0 | N45: 100 | O45: 100
C46: 위약금 | E46: =VLOOKUP($C46,'[1]징수보고서(지난년도제외)'!$A$3:$O$101,4,FALSE) -> 48,650 | F46: =VLOOKUP($C46,'[1]징수보고서(지난년도제외)'!$A$3:$O$101,5,FALSE) -> 83,891,320 | G46: =VLOOKUP($C46,'[1]징수보고서(지난년도제외)'!$A$3:$O$101,6,FALSE) -> 110,560 | H46: =VLOOKUP($C46,'[1]징수보고서(지난년도제외)'!$A$3:$O$101,7,FALSE) -> 83,891,320 | I46: =VLOOKUP($C46,'[1]징수보고서(지난년도제외)'!$A$3:$O$101,8,FALSE) -> 0 | J46: =VLOOKUP($C46,'[1]징수보고서(지난년도제외)'!$A$3:$O$101,9,FALSE) -> 0 | K46: =VLOOKUP($C46,'[1]징수보고서(지난년도제외)'!$A$3:$O$101,10,FALSE) -> 0 | L46: =VLOOKUP($C46,'[1]징수보고서(지난년도제외)'!$A$3:$O$101,11,FALSE) -> 0 | M46: 0 | N46: 227.26 | O46: 100
C47: 그외수입 | E47: =VLOOKUP($C47,'[1]징수보고서(지난년도제외)'!$A$3:$O$101,4,FALSE) -> 53,559,034 | F47: =VLOOKUP($C47,'[1]징수보고서(지난년도제외)'!$A$3:$O$101,5,FALSE) -> 3,670,942,959 | G47: =VLOOKUP($C47,'[1]징수보고서(지난년도제외)'!$A$3:$O$101,6,FALSE) -> 122,357,294 | H47: =VLOOKUP($C47,'[1]징수보고서(지난년도제외)'!$A$3:$O$101,7,FALSE) -> 3,545,895,999 | I47: =VLOOKUP($C47,'[1]징수보고서(지난년도제외)'!$A$3:$O$101,8,FALSE) -> 0 | J47: =VLOOKUP($C47,'[1]징수보고서(지난년도제외)'!$A$3:$O$101,9,FALSE) -> 431,400 | K47: =VLOOKUP($C47,'[1]징수보고서(지난년도제외)'!$A$3:$O$101,10,FALSE) -> 0 | L47: =VLOOKUP($C47,'[1]징수보고서(지난년도제외)'!$A$3:$O$101,11,FALSE) -> 0 | M47: 125,046,960 | N47: 228.45 | O47: 96.59
A48: 지방행정제재 부과금 | E48: =SUM(E49:E56) -> 299,970,097 | F48: =SUM(F49:F56) -> 2,964,705,015 | G48: 132,382,330 | H48: 1,502,264,316 | I48: 4,355,090 | J48: 4,798,880 | K48: 0 | L48: 0 | M48: 1,462,440,699 | N48: 44.13 | O48: 50.67
B49: 과징금 | C49: 과징금 | E49: =VLOOKUP($C49,'[1]징수보고서(지난년도제외)'!$A$3:$O$101,4,FALSE) -> 2,444,000 | F49: =VLOOKUP($C49,'[1]징수보고서(지난년도제외)'!$A$3:$O$101,5,FALSE) -> 275,111,060 | G49: =VLOOKUP($C49,'[1]징수보고서(지난년도제외)'!$A$3:$O$101,6,FALSE) -> 7,014,000 | H49: =VLOOKUP($C49,'[1]징수보고서(지난년도제외)'!$A$3:$O$101,7,FALSE) -> 69,463,130 | I49: =VLOOKUP($C49,'[1]징수보고서(지난년도제외)'!$A$3:$O$101,8,FALSE) -> 0 | J49: =VLOOKUP($C49,'[1]징수보고서(지난년도제외)'!$A$3:$O$101,9,FALSE) -> 0 | K49: =VLOOKUP($C49,'[1]징수보고서(지난년도제외)'!$A$3:$O$101,10,FALSE) -> 0 | L49: =VLOOKUP($C49,'[1]징수보고서(지난년도제외)'!$A$3:$O$101,11,FALSE) -> 0 | M49: =F49-H49-L49 -> 205,647,930 | N49: 286.99 | O49: 25.25
B50: 이행강제금 | C50: 이행강제금 | E50: =VLOOKUP($C50,'[1]징수보고서(지난년도제외)'!$A$3:$O$101,4,FALSE) -> 99,952,490 | F50: =VLOOKUP($C50,'[1]징수보고서(지난년도제외)'!$A$3:$O$101,5,FALSE) -> 562,078,270 | G50: =VLOOKUP($C50,'[1]징수보고서(지난년도제외)'!$A$3:$O$101,6,FALSE) -> 36,972,770 | H50: =VLOOKUP($C50,'[1]징수보고서(지난년도제외)'!$A$3:$O$101,7,FALSE) -> 336,705,630 | I50: =VLOOKUP($C50,'[1]징수보고서(지난년도제외)'!$A$3:$O$101,8,FALSE) -> 0 | J50: =VLOOKUP($C50,'[1]징수보고서(지난년도제외)'!$A$3:$O$101,9,FALSE) -> 0 | K50: =VLOOKUP($C50,'[1]징수보고서(지난년도제외)'!$A$3:$O$101,10,FALSE) -> 0 | L50: =VLOOKUP($C50,'[1]징수보고서(지난년도제외)'!$A$3:$O$101,11,FALSE) -> 0 | M50: 225,372,640 | N50: 36.99 | O50: 59.9
B51: 변상금 | C51: 변상금 | E51: =VLOOKUP($C51,'[1]징수보고서(지난년도제외)'!$A$3:$O$101,4,FALSE) -> 2,218,407 | F51: =VLOOKUP($C51,'[1]징수보고서(지난년도제외)'!$A$3:$O$101,5,FALSE) -> 41,923,955 | G51: =VLOOKUP($C51,'[1]징수보고서(지난년도제외)'!$A$3:$O$101,6,FALSE) -> 1,014,970 | H51: =VLOOKUP($C51,'[1]징수보고서(지난년도제외)'!$A$3:$O$101,7,FALSE) -> 29,166,996 | I51: =VLOOKUP($C51,'[1]징수보고서(지난년도제외)'!$A$3:$O$101,8,FALSE) -> 0 | J51: =VLOOKUP($C51,'[1]징수보고서(지난년도제외)'!$A$3:$O$101,9,FALSE) -> 0 | K51: =VLOOKUP($C51,'[1]징수보고서(지난년도제외)'!$A$3:$O$101,10,FALSE) -> 0 | L51: =VLOOKUP($C51,'[1]징수보고서(지난년도제외)'!$A$3:$O$101,11,FALSE) -> 0 | M51: 12,756,959 | N51: 45.75 | O51: 69.57
B52: 과태료 | C52: 차량관련과태료 | E52: =VLOOKUP($C52,'[1]징수보고서(지난년도제외)'!$A$3:$O$101,4,FALSE) -> 98,408,100 | F52: =VLOOKUP($C52,'[1]징수보고서(지난년도제외)'!$A$3:$O$101,5,FALSE) -> 779,350,920 | G52: =VLOOKUP($C52,'[1]징수보고서(지난년도제외)'!$A$3:$O$101,6,FALSE) -> 31,655,070 | H52: =VLOOKUP($C52,'[1]징수보고서(지난년도제외)'!$A$3:$O$101,7,FALSE) -> 272,040,190 | I52: =VLOOKUP($C52,'[1]징수보고서(지난년도제외)'!$A$3:$O$101,8,FALSE) -> 0 | J52: =VLOOKUP($C52,'[1]징수보고서(지난년도제외)'!$A$3:$O$101,9,FALSE) -> 32,000 | K52: =VLOOKUP($C52,'[1]징수보고서(지난년도제외)'!$A$3:$O$101,10,FALSE) -> 0 | L52: =VLOOKUP($C52,'[1]징수보고서(지난년도제외)'!$A$3:$O$101,11,FALSE) -> 0 | M52: 507,310,730 | N52: 32.17 | O52: 34.91
C53: 기타과태료 | E53: =VLOOKUP($C53,'[1]징수보고서(지난년도제외)'!$A$3:$O$101,4,FALSE) -> 61,450,370 | F53: =VLOOKUP($C53,'[1]징수보고서(지난년도제외)'!$A$3:$O$101,5,FALSE) -> 645,259,920 | G53: =VLOOKUP($C53,'[1]징수보고서(지난년도제외)'!$A$3:$O$101,6,FALSE) -> 34,770,610 | H53: =VLOOKUP($C53,'[1]징수보고서(지난년도제외)'!$A$3:$O$101,7,FALSE) -> 390,331,400 | I53: =VLOOKUP($C53,'[1]징수보고서(지난년도제외)'!$A$3:$O$101,8,FALSE) -> 240,090 | J53: =VLOOKUP($C53,'[1]징수보고서(지난년도제외)'!$A$3:$O$101,9,FALSE) -> 538,650 | K53: =VLOOKUP($C53,'[1]징수보고서(지난년도제외)'!$A$3:$O$101,10,FALSE) -> 0 | L53: =VLOOKUP($C53,'[1]징수보고서(지난년도제외)'!$A$3:$O$101,11,FALSE) -> 0 | M53: 254,928,520 | N53: 56.58 | O53: 60.49
B54: 환수금 | C54: 부정이익환수금 | E54: =VLOOKUP($C54,'[1]징수보고서(지난년도제외)'!$A$3:$O$101,4,FALSE) -> 17,916,000 | F54: =VLOOKUP($C54,'[1]징수보고서(지난년도제외)'!$A$3:$O$101,5,FALSE) -> 29,859,970 | G54: =VLOOKUP($C54,'[1]징수보고서(지난년도제외)'!$A$3:$O$101,6,FALSE) -> 1,725,340 | H54: =VLOOKUP($C54,'[1]징수보고서(지난년도제외)'!$A$3:$O$101,7,FALSE) -> 10,744,570 | I54: =VLOOKUP($C54,'[1]징수보고서(지난년도제외)'!$A$3:$O$101,8,FALSE) -> 0 | J54: =VLOOKUP($C54,'[1]징수보고서(지난년도제외)'!$A$3:$O$101,9,FALSE) -> 0 | K54: =VLOOKUP($C54,'[1]징수보고서(지난년도제외)'!$A$3:$O$101,10,FALSE) -> 0 | L54: =VLOOKUP($C54,'[1]징수보고서(지난년도제외)'!$A$3:$O$101,11,FALSE) -> 0 | M54: 19,115,400 | N54: 9.63 | O54: 35.98
B55: 부담금 | C55: 부담금 | E55: =VLOOKUP($C55,'[1]징수보고서(지난년도제외)'!$A$3:$O$101,4,FALSE) -> 16,180,730 | F55: =VLOOKUP($C55,'[1]징수보고서(지난년도제외)'!$A$3:$O$101,5,FALSE) -> 607,880,920 | G55: =VLOOKUP($C55,'[1]징수보고서(지난년도제외)'!$A$3:$O$101,6,FALSE) -> 18,229,570 | H55: =VLOOKUP($C55,'[1]징수보고서(지난년도제외)'!$A$3:$O$101,7,FALSE) -> 370,972,400 | I55: =VLOOKUP($C55,'[1]징수보고서(지난년도제외)'!$A$3:$O$101,8,FALSE) -> 4,115,000 | J55: =VLOOKUP($C55,'[1]징수보고서(지난년도제외)'!$A$3:$O$101,9,FALSE) -> 4,228,230 | K55: =VLOOKUP($C55,'[1]징수보고서(지난년도제외)'!$A$3:$O$101,10,FALSE) -> 0 | L55: =VLOOKUP($C55,'[1]징수보고서(지난년도제외)'!$A$3:$O$101,11,FALSE) -> 0 | M55: 236,908,520 | N55: 112.66 | O55: 61.03
B56: 범칙금 | C56: 범칙금 | E56: =VLOOKUP($C56,'[1]징수보고서(지난년도제외)'!$A$3:$O$101,4,FALSE) -> 1,400,000 | F56: =VLOOKUP($C56,'[1]징수보고서(지난년도제외)'!$A$3:$O$101,5,FALSE) -> 23,240,000 | G56: =VLOOKUP($C56,'[1]징수보고서(지난년도제외)'!$A$3:$O$101,6,FALSE) -> 1,000,000 | H56: =VLOOKUP($C56,'[1]징수보고서(지난년도제외)'!$A$3:$O$101,7,FALSE) -> 22,840,000 | I56: =VLOOKUP($C56,'[1]징수보고서(지난년도제외)'!$A$3:$O$101,8,FALSE) -> 0 | J56: =VLOOKUP($C56,'[1]징수보고서(지난년도제외)'!$A$3:$O$101,9,FALSE) -> 0 | K56: =VLOOKUP($C56,'[1]징수보고서(지난년도제외)'!$A$3:$O$101,10,FALSE) -> 0 | L56: =VLOOKUP($C56,'[1]징수보고서(지난년도제외)'!$A$3:$O$101,11,FALSE) -> 0 | M56: 400,000 | N56: 71.43 | O56: 98.28
A57: 지난연도 수입 | E57: =E58 -> (19,330,410) | F57: =F58 -> 20,072,603,677 | G57: 153,779,270 | H57: 4,550,911,654 | I57: 2,917,880 | J57: 76,531,661 | K57: 23,320,670 | L57: 186,868,150 | M57: 15,334,823,873 | N57: =N58 -> (795.53) | O57: =O58 -> 22.67
B58: 지난연도 수입 | C58: 지난연도 수입 | E58: =[1]지난년도과목!E3 -> (19,330,410) | F58: =[1]지난년도과목!F3 -> 20,072,603,677 | G58: =[1]지난년도과목!G3 -> 153,779,270 | H58: =[1]지난년도과목!H3 -> 4,550,911,654 | I58: =[1]지난년도과목!I3 -> 2,917,880 | J58: =[1]지난년도과목!J3 -> 76,531,661 | K58: =[1]지난년도과목!K3 -> 23,320,670 | L58: =[1]지난년도과목!L3 -> 186,868,150 | M58: =F58-H58-L58 -> 15,334,823,873 | N58: =ROUND(G58/E58*100,2) -> -795.53 | O58: =ROUND(H58/F58*100,2) -> 22.67
A61: ※ 작성요령
A62: 1. 작성대상 : 일반회계
A63: 2. 작성기준 : 매월 20일까지 전월 자료 세외수입통계정보시스템 징수월보 등록
A64: 3. 제출방법 : 세외수입통계정보시스템
A65: 4. 해당 지자체에서 부과, 징수되는 세외수입은 모두 포함하고, 자료 누락이나 잘못된 값이 들어가지 않도록 자료 작성에 각별히 신경(향후 연감 작업시 검증자료로 활용예정)
A66: 5. 징수결정액은 납부자가 납부해야할 최종 금액으로 부과취소 등 감액분은 제외
A67: 6. 수납액은 납부자가 실제 납부한 금액에서 과오납 환급금을 제외한 금액
A68: 7. 불납결손액은 징수 불가능 금액으로 결손처분한 금액
